fUSD/lending_fUSD_20250823
["ID","MTS","AMOUNT","RATE_DAILY","PERIOD"]
[380955768,1755912732357,-705.67,0.00015616,2]
[380955769,1755912732367,-896.87,0.00015616,2]
[380955770,1755912732378,-1094.77,0.00015616,2]
[380955771,1755912732389,-400.0,0.00015616,2]
[380955772,1755912732399,-400.0,0.00015616,2]
[380955773,1755912732408,-741.74,0.00015616,2]
[380955774,1755912732418,-869.76,0.00015616,2]
[380955775,1755912732428,-418.69,0.00015616,2]
[380955776,1755912732438,-400.0,0.00015616,2]
[380955777,1755912732447,-400.0,0.00015616,2]
[380955778,1755912732458,-437.77,0.00015616,2]
[380955779,1755912732469,-562.13,0.00015616,2]
[380955780,1755912732479,-541.27,0.00015616,2]
[380955781,1755912732488,-1048.91,0.00015616,2]
[380955782,1755912732498,-723.99,0.00015616,2]
[380955783,1755912732507,-400.0,0.00015616,2]
[380955784,1755912732516,-400.0,0.00015616,2]
[380955785,1755912732525,-614.11,0.00015616,2]
[380955786,1755912732535,-4903.23,0.00015616,2]
[380955787,1755912732544,-400.0,0.00015616,2]
[380955788,1755912732553,-963.36,0.00015616,2]
[380955789,1755912732562,-685.08,0.00015616,2]
[380955790,1755912732571,-400.0,0.00015616,2]
[380955791,1755912732580,-508.77,0.00015616,2]
[380955792,1755912732590,-530.85,0.00015616,2]
[380955793,1755912732599,-956.53,0.00015616,2]
[380955794,1755912732608,-400.0,0.00015616,2]
[380955795,1755912732618,-400.0,0.00015616,2]
[380955796,1755912732626,-690.94,0.00015616,2]
[380955797,1755912732636,-410.03789013,0.00015616,2]
[380955798,1755912732645,-781.78,0.00015616,2]
[380955799,1755912732654,-516.0,0.00015616,2]
[380955800,1755912732663,-400.0,0.00015616,2]
[380955801,1755912732672,-407.82,0.00015616,2]
[380955802,1755912732681,-166.839125,0.00015616,2]
[380955803,1755912732691,-447.07953127,0.00015616,2]
[380955804,1755912732700,-573.49,0.00015616,2]
[380955805,1755912732709,-400.0,0.00015616,2]
[380955806,1755912732720,-2566.25,0.00015616,2]
[380955807,1755912732730,-400.0,0.00015616,2]
[380955808,1755912732739,-400.0,0.00015616,2]
[380955809,1755912732749,-548.91,0.00015616,2]
[380955810,1755912732758,-400.0,0.00015616,2]
[380955811,1755912732767,-468.96,0.00015616,2]
[380955812,1755912732791,-947.84,0.00015616,2]
[380955813,1755912732810,-1155.0,0.00015616,2]
[380955814,1755912732830,-400.0,0.00015616,2]
[380955815,1755912732849,-659.68,0.00015616,2]
[380955816,1755912732867,-1053.52,0.00015616,2]
[380955817,1755912732887,-691.7,0.00015616,2]
[380955818,1755912732906,-719.87,0.00015616,2]
[380955819,1755912732928,-557.81,0.00015616,2]
[380955820,1755912732946,-1327.17,0.00015616,2]
[380955821,1755912732967,-621.05,0.00015616,2]
[380955822,1755912732982,-532.88,0.00015616,2]
[380955823,1755912733000,-400.0,0.00015616,2]
[380955824,1755912733014,-811.77,0.00015616,2]
[380955825,1755912733032,-482.24,0.00015616,2]
[380955826,1755912733046,-825.64,0.00015616,2]
[380955827,1755912733064,-786.36,0.00015616,2]
[380955828,1755912733079,-448.05,0.00015616,2]
[380955829,1755912733093,-400.0,0.00015616,2]
[380955830,1755912733109,-508.4,0.00015616,2]
[380955831,1755912733127,-400.0,0.00015616,2]
[380955832,1755912733144,-471.12,0.00015616,2]
[380955833,1755912733161,-1160.25,0.00015616,2]
[380955834,1755912733184,-478.08,0.00015616,2]
[380955835,1755912733203,-522.09,0.00015616,2]
[380955836,1755912733220,-400.0,0.00015616,2]
[380955837,1755912733236,-400.0,0.00015616,2]
[380955838,1755912733252,-413.45,0.00015616,2]
[380955839,1755912733268,-1658.24,0.00015616,2]
[380955840,1755912733284,-400.01,0.00015616,2]
[380955841,1755912733299,-876.0,0.00015616,2]
[380955842,1755912733314,-928.99,0.00015616,2]
[380955843,1755912733330,-1082.57,0.00015616,2]
[380955844,1755912733346,-535.34,0.00015616,2]
[380955845,1755912733363,-400.0,0.00015616,2]
[380955846,1755912733380,-599.68,0.00015616,2]
[380955847,1755912733395,-581.91,0.00015616,2]
[380955848,1755912733411,-576.13,0.00015616,2]
[380955849,1755912733426,-808.82,0.00015616,2]
[380955850,1755912733442,-704.93,0.00015616,2]
[380955851,1755912733458,-629.77,0.00015616,2]
[380955852,1755912733475,-677.9,0.00015616,2]
[380955853,1755912733491,-458.74,0.00015616,2]
[380955854,1755912733507,-909.17,0.00015616,2]
[380955855,1755912733530,-757.81,0.00015616,2]
[380955856,1755912733545,-1628.12,0.00015616,2]
[380955857,1755912733560,-400.0,0.00015616,2]
[380955858,1755912733575,-412.49,0.00015616,2]
[380955859,1755912733591,-562.56,0.00015616,2]
[380955860,1755912733607,-400.0,0.00015616,2]
[380955861,1755912733622,-556.37,0.00015616,2]
[380955862,1755912733638,-901.46,0.00015616,2]
[380955863,1755912733653,-500.0,0.00015616,2]
[380955864,1755912733668,-554.4,0.00015616,2]
[380955865,1755912733683,-699.23,0.00015616,2]
[380955866,1755912733699,-442.39,0.00015616,2]
[380955867,1755912733714,-627.55,0.00015616,2]
[380955868,1755912733729,-400.0,0.00015616,2]
[380955869,1755912733744,-475.41,0.00015616,2]
[380955870,1755912733759,-493.66,0.00015616,2]
[380955871,1755912733774,-500.0,0.00015616,2]
[380955872,1755912733790,-400.0,0.00015616,2]
[380955873,1755912733810,-618.33,0.00015616,2]
[380955874,1755912733825,-400.0,0.00015616,2]
[380955875,1755912733839,-400.0,0.00015616,2]
[380955876,1755912733854,-2066.0,0.00015616,2]
[380955877,1755912733869,-1043.76,0.00015616,2]
[380955878,1755912733884,-400.0,0.00015616,2]
[380955879,1755912733899,-400.0,0.00015616,2]
[380955880,1755912733914,-415.82,0.00015616,2]
[380955881,1755912733930,-491.94,0.00015616,2]
[380955882,1755912733945,-682.29,0.00015616,2]
[380955883,1755912733960,-400.0,0.00015616,2]
[380955884,1755912733976,-427.73,0.00015616,2]
[380955885,1755912733990,-537.21,0.00015616,2]
[380955886,1755912734005,-501.87,0.00015616,2]
[380955887,1755912734019,-468.97,0.00015616,2]
[380955888,1755912734034,-640.17,0.00015616,2]
[380955889,1755912734049,-568.93,0.00015616,2]
[380955890,1755912734065,-577.38,0.00015616,2]
[380955891,1755912734080,-620.18,0.00015616,2]
[380955892,1755912734095,-1005.26,0.00015616,2]
[380955893,1755912734111,-457.02,0.00015616,2]
[380955894,1755912734127,-400.0,0.00015616,2]
[380955895,1755912734144,-773.99,0.00015616,2]
[380955896,1755912734160,-933.58,0.00015616,2]
[380955897,1755912734178,-400.0,0.00015616,2]
[380955898,1755912734196,-400.0,0.00015616,2]
[380955899,1755912734213,-400.0,0.00015616,2]
[380955900,1755912734238,-400.0,0.00015616,2]
[380955901,1755912734255,-400.0,0.00015616,2]
[380955902,1755912734273,-400.0,0.00015616,2]
[380955903,1755912734292,-610.39,0.00015616,2]
[380955904,1755912734310,-407.11,0.00015616,2]
[380955905,1755912734327,-646.19,0.00015616,2]
[380955906,1755912734344,-431.04,0.00015616,2]
[380955907,1755912734368,-605.05,0.00015616,2]
[380955908,1755912734387,-400.0,0.00015616,2]
[380955909,1755912734403,-938.83,0.00015616,2]
[380955910,1755912734418,-400.0,0.00015616,2]
[380955911,1755912734435,-490.42,0.00015616,2]
[380955912,1755912734451,-664.71,0.00015616,2]
[380955913,1755912734469,-546.05,0.00015616,2]
[380955914,1755912734485,-1070.54,0.00015616,2]
[380955915,1755912734501,-410.97,0.00015616,2]
[380955916,1755912734516,-570.73,0.00015616,2]
[380955917,1755912734532,-665.32,0.00015616,2]
[380955918,1755912734548,-716.24,0.00015616,2]
[380955919,1755912734563,-400.0,0.00015616,2]
[380955920,1755912734579,-400.0,0.00015616,2]
[380955921,1755912734594,-697.95,0.00015616,2]
[380955922,1755912734611,-400.0,0.00015616,2]
[380955923,1755912734630,-731.6,0.00015616,2]
[380955924,1755912734648,-509.97,0.00015616,2]
[380955925,1755912734663,-1401.51,0.00015616,2]
[380955926,1755912734675,-400.0,0.00015616,2]
[380955927,1755912734690,-474.27,0.00015616,2]
[380955928,1755912734705,-1143.48,0.00015616,2]
[380955929,1755912734722,-400.0,0.00015616,2]
[380955930,1755912734738,-633.21,0.00015616,2]
[380955931,1755912734753,-1150.35,0.00015616,2]
[380955932,1755912734768,-551.73,0.00015616,2]
[380955933,1755912734782,-400.0,0.00015616,2]
[380955934,1755912734798,-803.81,0.00015616,2]
[380955935,1755912734813,-400.0,0.00015616,2]
[380955936,1755912734828,-709.31,0.00015616,2]
[380955937,1755912734843,-507.56,0.00015616,2]
[380955938,1755912734859,-1049.21,0.00015616,2]
[380955939,1755912734873,-400.0,0.00015616,2]
[380955940,1755912734889,-743.59,0.00015616,2]
[380955941,1755912734904,-400.0,0.00015616,2]
[380955942,1755912734919,-870.96,0.00015616,2]
[380955943,1755912734935,-599.05,0.00015616,2]
[380955944,1755912734951,-513.2483893,0.00015616,2]
[380955945,1755912734967,-640.94,0.00015616,2]
[380955946,1755912734982,-878.26,0.00015616,2]
[380955947,1755912734997,-518.56,0.00015616,2]
[380955948,1755912735012,-400.0,0.00015616,2]
[380955949,1755912735026,-1743.04,0.00015616,2]
[380955950,1755912735041,-784.45,0.00015616,2]
[380955951,1755912735056,-671.68,0.00015616,2]
[380955952,1755912735072,-983.76,0.00015616,2]
[380955953,1755912735086,-538.86,0.00015616,2]
[380955954,1755912735101,-939.87,0.00015616,2]
[380955955,1755912735115,-582.18,0.00015616,2]
[380955956,1755912735130,-400.0,0.00015616,2]
[380955957,1755912735145,-400.0,0.00015616,2]
[380955958,1755912735161,-839.71,0.00015616,2]
[380955959,1755912735176,-1021.93,0.00015616,2]
[380955960,1755912735191,-400.0,0.00015616,2]
[380955961,1755912735206,-706.05,0.00015616,2]
[380955962,1755912735222,-890.17,0.00015616,2]
[380955963,1755912735237,-1278.62,0.00015616,2]
[380955964,1755912735252,-527.2,0.00015616,2]
[380955965,1755912735269,-649.66,0.00015616,2]
[380955966,1755912735285,-400.0,0.00015616,2]
[380955967,1755912735626,-634.12,0.00015616,2]
[380955968,1755912735649,-1099.97,0.00015616,2]
[380955969,1755912735659,-784.4,0.00015616,2]
[380955970,1755912735668,-726.51,0.00015616,2]
[380955971,1755912735677,-985.25,0.00015616,2]
[380955972,1755912735688,-754.33,0.00015616,2]
[380955973,1755912735697,-971.12,0.00015616,2]
[380955974,1755912735707,-1154.79,0.00015616,2]
[380955975,1755912735718,-691.37,0.00015616,2]
[380955976,1755912735727,-1203.18,0.00015616,2]
[380955977,1755912735737,-1157.08,0.00015616,2]
[380955978,1755912735746,-400.0,0.00015616,2]
[380955979,1755912735756,-535.95,0.00015616,2]
[380955980,1755912735765,-888.95,0.00015616,2]
[380955981,1755912735775,-656.19,0.00015616,2]
[380955982,1755912735785,-807.2,0.00015616,2]
[380955983,1755912735794,-1439.09,0.00015616,2]
[380955984,1755912735804,-659.77,0.00015616,2]
[380955985,1755912735814,-583.57,0.00015616,2]
[380955986,1755912735824,-400.0,0.00015616,2]
[380955987,1755912735833,-890.52,0.00015616,2]
[380955988,1755912735843,-731.16,0.00015616,2]
[380955989,1755912735853,-400.0,0.00015616,2]
[380955990,1755912735862,-400.0,0.00015616,2]
[380955991,1755912735872,-635.62,0.00015616,2]
[380955992,1755912735881,-766.72,0.00015616,2]
[380955993,1755912735891,-855.77,0.00015616,2]
[380955994,1755912735901,-986.02,0.00015616,2]
[380955995,1755912735911,-963.55,0.00015616,2]
[380955996,1755912735920,-400.0,0.00015616,2]
[380955997,1755912735929,-967.68,0.00015616,2]
[380955998,1755912735939,-400.0,0.00015616,2]
[380955999,1755912735948,-482.07,0.00015616,2]
[380956000,1755912735958,-400.0,0.00015616,2]
[380956001,1755912735967,-400.0,0.00015616,2]
[380956002,1755912735977,-466.03,0.00015616,2]
[380956003,1755912735986,-859.0,0.00015616,2]
[380956004,1755912735995,-828.37,0.00015616,2]
[380956005,1755912736005,-506.23,0.00015616,2]
[380956006,1755912736014,-507.72,0.00015616,2]
[380956007,1755912736024,-1494.7,0.00015616,2]
[380956008,1755912736033,-777.58,0.00015616,2]
[380956009,1755912736042,-400.0,0.00015616,2]
[380956010,1755912736051,-400.0,0.00015616,2]
[380956011,1755912736061,-400.0,0.00015616,2]
[380956012,1755912736071,-781.12,0.00015616,2]
[380956013,1755912736080,-479.67,0.00015616,2]
[380956014,1755912736089,-937.77,0.00015616,2]
[380956015,1755912736099,-755.98,0.00015616,2]
[380956016,1755912736109,-585.32,0.00015616,2]
[380956017,1755912736119,-400.0,0.00015616,2]
[380956018,1755912736129,-941.46,0.00015616,2]
[380956019,1755912736138,-1039.23,0.00015616,2]
[380956020,1755912736148,-400.0,0.00015616,2]
[380956021,1755912736158,-979.86,0.00015616,2]
[380956022,1755912736168,-498.14,0.00015616,2]
[380956023,1755912736179,-545.13,0.00015616,2]
[380956024,1755912736188,-400.0,0.00015616,2]
[380956025,1755912736199,-873.74,0.00015616,2]
[380956026,1755912736208,-958.27,0.00015616,2]
[380956027,1755912736219,-792.76,0.00015616,2]
[380956028,1755912736229,-650.0,0.00015616,2]
[380956029,1755912736239,-903.77,0.00015616,2]
[380956030,1755912736249,-400.0,0.00015616,2]
[380956031,1755912736260,-505.4,0.00015616,2]
[380956032,1755912736270,-764.74,0.00015616,2]
[380956033,1755912736280,-400.0,0.00015616,2]
[380956034,1755912736290,-822.02,0.00015616,2]
[380956035,1755912736299,-400.0,0.00015616,2]
[380956036,1755912736310,-400.0,0.00015616,2]
[380956037,1755912736320,-400.0,0.00015616,2]
[380956038,1755912736330,-400.0,0.00015616,2]
[380956039,1755912736340,-493.69,0.00015616,2]
[380956040,1755912736351,-550.01,0.00015616,2]
[380956041,1755912736360,-400.0,0.00015616,2]
[380956042,1755912736370,-532.46,0.00015616,2]
[380956043,1755912736381,-400.0,0.00015616,2]
[380956044,1755912736393,-957.7,0.00015616,2]
[380956045,1755912736404,-400.0,0.00015616,2]
[380956046,1755912736413,-724.98,0.00015616,2]
[380956047,1755912736425,-400.0,0.00015616,2]
[380956048,1755912736435,-712.18,0.00015616,2]
[380956049,1755912736445,-3061.19,0.00015616,2]
[380956050,1755912736456,-484.95,0.00015616,2]
[380956051,1755912736465,-839.82,0.00015616,2]
[380956052,1755912736477,-400.0,0.00015616,2]
[380956053,1755912736487,-1167.85,0.00015616,2]
[380956054,1755912736498,-911.43,0.00015616,2]
[380956055,1755912736508,-400.0,0.00015616,2]
[380956056,1755912736518,-402.87,0.00015616,2]
[380956057,1755912736528,-668.01,0.00015616,2]
[380956058,1755912736539,-440.73,0.00015616,2]
[380956059,1755912736549,-400.0,0.00015616,2]
[380956060,1755912736559,-400.0,0.00015616,2]
[380956061,1755912736569,-631.42,0.00015616,2]
[380956062,1755912736579,-931.59,0.00015616,2]
[380956063,1755912736589,-400.0,0.00015616,2]
[380956064,1755912736599,-585.39,0.00015616,2]
[380956065,1755912736609,-613.21,0.00015616,2]
[380956066,1755912736619,-400.0,0.00015616,2]
[380956067,1755912736630,-821.68,0.00015616,2]
[380956068,1755912736640,-980.7,0.00015616,2]
[380956069,1755912736650,-464.46,0.00015616,2]
[380956070,1755912736660,-408.02,0.00015616,2]
[380956071,1755912736670,-400.0,0.00015616,2]
[380956072,1755912736679,-400.0,0.00015616,2]
[380956073,1755912736689,-840.52,0.00015616,2]
[380956074,1755912736698,-627.98,0.00015616,2]
[380956075,1755912736708,-468.81,0.00015616,2]
[380956076,1755912736718,-422.9814843,0.00015616,2]
[380956077,1755912736729,-454.78454612,0.0001562,2]
[380956078,1755912736738,-1500.0,0.00015631,2]
[380956079,1755912736747,-1500.0,0.00015631,2]
[380956080,1755912736757,-1148.87031576,0.00015631,2]
[380956081,1755912736767,-1500.0,0.00015631,2]
[380956082,1755912736777,-1500.0,0.00015631,2]
[380956083,1755912736787,-1500.0,0.00015631,2]
[380956084,1755912736796,-1500.0,0.00015631,2]
[380956085,1755912736805,-150.0,0.00015666,2]
[380956086,1755912736815,-2747.93340558,0.00015679,2]
[380956087,1755912736825,-205.0,0.0001575,2]
[380956088,1755912736834,-214.0,0.0001575,2]
[380956089,1755912736843,-2118.87,0.00015753,2]
[380956090,1755912736853,-150.0,0.00015756,2]
[380956091,1755912736862,-150.0,0.00015756,2]
[380956092,1755912736872,-150.0,0.00015756,2]
[380956093,1755912736881,-10013.33385602,0.0001579,2]
[380956094,1755912736891,-509.0,0.000158,2]
[380956095,1755912736901,-1831.0,0.000158,2]
[380956096,1755912736911,-1252.0,0.00015816,2]
[380956097,1755912736920,-150.0,0.00015823,2]
[380956098,1755912736930,-869.26,0.00015838,2]
[380956099,1755912736939,-900.0,0.00015861,2]
[380956100,1755912736949,-900.0,0.00015861,2]
[380956101,1755912736959,-900.0,0.00015861,2]
[380956102,1755912736968,-900.0,0.00015861,2]
[380956103,1755912736980,-900.0,0.00015861,2]
[380956104,1755912736990,-900.0,0.00015861,2]
[380956105,1755912736999,-900.0,0.00015861,2]
[380956106,1755912737008,-328.06747387,0.00015861,2]
[380956107,1755912737018,-900.0,0.00015861,2]
[380956108,1755912737027,-900.0,0.00015861,2]
[380956109,1755912737037,-900.0,0.00015861,2]
[380956110,1755912737047,-900.0,0.00015861,2]
[380956111,1755912737056,-900.0,0.00015861,2]
[380956112,1755912737066,-900.0,0.00015861,2]
[380956113,1755912737075,-900.0,0.00015861,2]
[380956114,1755912737086,-900.0,0.00015861,2]
[380956115,1755912737096,-155.81060881,0.0001589,2]
[380956116,1755912737105,-733.0,0.0001589,2]
[380956117,1755912737115,-498.56717847,0.0001589,2]
[380956118,1755912737125,-150.0,0.0001589,2]
[380956119,1755912737135,-500.0,0.0001589,2]
[380956120,1755912737153,-500.0,0.0001589,2]
[380956121,1755912737162,-1367.0,0.0001589,2]
[380956122,1755912737172,-150.0,0.0001589,2]
[380956123,1755912737182,-169.45713969,0.0001589,2]
[380956124,1755912737193,-500.0,0.0001589,2]
[380956125,1755912737202,-500.0,0.0001589,2]
[380956126,1755912737212,-200.0,0.0001589,2]
[380956127,1755912737223,-264.63462873,0.0001589,2]
[380956128,1755912737233,-500.0,0.0001589,2]
[380956129,1755912737244,-500.0,0.0001589,2]
[380956130,1755912737254,-300.0,0.0001589,2]
[380956131,1755912737264,-500.0,0.0001589,2]
[380956132,1755912737273,-500.0,0.0001589,2]
[380956133,1755912737284,-150.0,0.0001589,2]
[380956134,1755912737294,-500.0,0.0001589,2]
[380956135,1755912737304,-500.0,0.0001589,2]
[380956136,1755912737313,-500.0,0.0001589,2]
[380956137,1755912737323,-2066.0,0.0001589,2]
[380956138,1755912737332,-404.24,0.0001589,2]
[380956139,1755912737342,-400.0,0.0001589,2]
[380956140,1755912737352,-400.0,0.0001589,2]
[380956141,1755912737361,-957.1,0.0001589,2]
[380956142,1755912737371,-400.0,0.0001589,2]
[380956143,1755912737382,-500.5,0.0001589,2]
[380956144,1755912737393,-400.0,0.0001589,2]
[380956145,1755912737402,-630.13,0.0001589,2]
[380956146,1755912737412,-691.2,0.0001589,2]
[380956147,1755912737421,-484.29,0.0001589,2]
[380956148,1755912737431,-400.0,0.0001589,2]
[380956149,1755912737441,-564.0,0.0001589,2]
[380956150,1755912737450,-922.66,0.0001589,2]
[380956151,1755912737460,-1309.75,0.0001589,2]
[380956152,1755912737470,-400.0,0.0001589,2]
[380956153,1755912737480,-400.0,0.0001589,2]
[380956154,1755912737489,-410.64,0.0001589,2]
[380956155,1755912737498,-400.0,0.0001589,2]
[380956156,1755912737508,-400.0,0.0001589,2]
[380956157,1755912737517,-400.0,0.0001589,2]
[380956158,1755912737527,-400.0,0.0001589,2]
[380956159,1755912737536,-400.0,0.0001589,2]
[380956160,1755912737545,-440.17949792,0.0001589,2]
[380956161,1755912737555,-400.0,0.0001589,2]
[380956162,1755912737564,-400.0,0.0001589,2]
[380956163,1755912737574,-814.35,0.0001589,2]
[380956164,1755912737583,-703.72,0.0001589,2]
[380956165,1755912737593,-400.0,0.0001589,2]
[380956166,1755912737602,-400.0,0.0001589,2]
[380956167,1755912737612,-400.0,0.0001589,2]
[380956168,1755912737621,-400.0,0.0001589,2]
[380956169,1755912737631,-416.84,0.0001589,2]
[380956170,1755912737641,-552.81,0.0001589,2]
[380956171,1755912737650,-565.22,0.0001589,2]
[380956172,1755912737660,-395.9718951,0.0001589,2]
[380956173,1755912737670,-400.0,0.0001589,2]
[380956174,1755912737679,-457.37,0.0001589,2]
[380956175,1755912737688,-400.0,0.0001589,2]
[380956176,1755912737698,-400.0,0.0001589,2]
[380956177,1755912737707,-400.0,0.0001589,2]
[380956178,1755912737716,-454.18,0.0001589,2]
[380956179,1755912737727,-408.41,0.0001589,2]
[380956180,1755912737737,-429.23,0.0001589,2]
[380956181,1755912737746,-400.0,0.0001589,2]
[380956182,1755912737756,-400.0,0.0001589,2]
[380956183,1755912737765,-400.0,0.0001589,2]
[380956184,1755912737774,-400.0,0.0001589,2]
[380956185,1755912737783,-582.37,0.0001589,2]
[380956186,1755912737793,-400.0,0.0001589,2]
[380956187,1755912737802,-400.0,0.0001589,2]
[380956188,1755912737811,-400.0,0.0001589,2]
[380956189,1755912737821,-400.0,0.0001589,2]
[380956190,1755912737830,-400.0,0.0001589,2]
[380956191,1755912737839,-400.0,0.0001589,2]
[380956192,1755912737849,-759.88,0.0001589,2]
[380956193,1755912737859,-591.39,0.0001589,2]
[380956194,1755912737869,-413.97,0.0001589,2]
[380956195,1755912737878,-649.74,0.0001589,2]
[380956196,1755912737888,-446.38,0.0001589,2]
[380956197,1755912737897,-506.47,0.0001589,2]
[380956198,1755912737906,-715.02,0.0001589,2]
[380956199,1755912737915,-400.0,0.0001589,2]
[380956200,1755912737925,-537.25,0.0001589,2]
[380956201,1755912737934,-400.0,0.0001589,2]
[380956202,1755912737944,-512.45,0.0001589,2]
[380956203,1755912737954,-400.0,0.0001589,2]
[380956204,1755912737964,-527.41,0.0001589,2]
[380956205,1755912737973,-400.0,0.0001589,2]
[380956206,1755912737984,-521.1,0.0001589,2]
[380956207,1755912737994,-400.0,0.0001589,2]
[380956208,1755912738003,-446.92,0.0001589,2]
[380956209,1755912738013,-449.44,0.0001589,2]
[380956210,1755912738023,-400.0,0.0001589,2]
[380956211,1755912738032,-675.1,0.0001589,2]
[380956212,1755912738041,-400.0,0.0001589,2]
[380956213,1755912738051,-400.0,0.0001589,2]
[380956214,1755912738060,-609.3,0.0001589,2]
[380956215,1755912738070,-654.03,0.0001589,2]
[380956216,1755912738079,-400.0,0.0001589,2]
[380956217,1755912738089,-400.0,0.0001589,2]
[380956218,1755912738099,-661.96,0.0001589,2]
[380956219,1755912738108,-568.98,0.0001589,2]
[380956220,1755912738118,-400.0,0.0001589,2]
[380956221,1755912738128,-400.0,0.0001589,2]
[380956222,1755912738138,-400.0,0.0001589,2]
[380956223,1755912738148,-413.71,0.0001589,2]
[380956224,1755912738158,-400.0,0.0001589,2]
[380956225,1755912738168,-709.86,0.0001589,2]
[380956226,1755912738178,-400.0,0.0001589,2]
[380956227,1755912738187,-400.0,0.0001589,2]
[380956228,1755912738197,-812.84,0.0001589,2]
[380956229,1755912738207,-437.4,0.0001589,2]
[380956230,1755912738217,-586.38,0.0001589,2]
[380956231,1755912738227,-442.27,0.0001589,2]
[380956232,1755912738237,-400.0,0.0001589,2]
[380956233,1755912738248,-562.61,0.0001589,2]
[380956234,1755912738258,-400.0,0.0001589,2]
[380956235,1755912738267,-400.0,0.0001589,2]
[380956236,1755912738277,-845.65,0.0001589,2]
[380956237,1755912738288,-441.24,0.0001589,2]
[380956238,1755912738298,-529.98,0.0001589,2]
[380956239,1755912738308,-400.0,0.0001589,2]
[380956240,1755912738318,-400.0,0.0001589,2]
[380956241,1755912738328,-570.39,0.0001589,2]
[380956242,1755912738338,-400.0,0.0001589,2]
[380956243,1755912738347,-421.77,0.0001589,2]
[380956244,1755912738357,-400.0,0.0001589,2]
[380956245,1755912738367,-400.0,0.0001589,2]
[380956246,1755912738377,-400.0,0.0001589,2]
[380956247,1755912738392,-400.0,0.0001589,2]
[380956248,1755912738402,-400.0,0.0001589,2]
[380956249,1755912738411,-464.48,0.0001589,2]
[380956250,1755912738421,-400.0,0.0001589,2]
[380956251,1755912738434,-400.0,0.0001589,2]
[380956252,1755912738444,-491.36,0.0001589,2]
[380956253,1755912738455,-415.36,0.0001589,2]
[380956254,1755912738466,-530.98,0.0001589,2]
[380956255,1755912738478,-400.0,0.0001589,2]
[380956256,1755912738489,-512.43,0.0001589,2]
[380956257,1755912738500,-516.79,0.0001589,2]
[380956258,1755912738511,-400.0,0.0001589,2]
[380956259,1755912738522,-400.0,0.0001589,2]
[380956260,1755912738533,-400.0,0.0001589,2]
[380956261,1755912738543,-400.0,0.0001589,2]
[380956262,1755912738553,-409.44,0.0001589,2]
[380956263,1755912738563,-400.0,0.0001589,2]
[380956264,1755912738573,-400.0,0.0001589,2]
[380956265,1755912738582,-400.0,0.0001589,2]
[380956266,1755912738593,-499.57,0.0001589,2]
[380956267,1755912738602,-476.9,0.0001589,2]